[Event "*** Titled Tuesday Blitz"]
[Site "Chess.com"]
[Date "2021.04.06"]
[Round "1"]
[White "XDPS"]
[Black "SergeyShtyka"]
[Result "1-0"]
[WhiteElo "2755"]
[BlackElo "2409"]
[TimeControl "180+1"]
[EndTime "10:08:25 PDT"]
[Termination "XDPS won on time"]

1. e4 {[%clk 0:03:00.9]} 1... c5 {[%clk 0:02:51.9]} 2. Nf3 {[%clk 0:03:00.5]}
2... Nc6 {[%clk 0:02:51.4]} 3. Bb5 {[%clk 0:02:59.4]} 3... g6 {[%clk 0:02:49.9]}
4. Bxc6 {[%clk 0:02:58.6]} 4... dxc6 {[%clk 0:02:45.4]} 5. d3 {[%clk 0:02:57.8]}
5... Bg7 {[%clk 0:02:45]} 6. h3 {[%clk 0:02:55.6]} 6... Nf6 {[%clk 0:02:44]} 7.
Nc3 {[%clk 0:02:54.9]} 7... O-O {[%clk 0:02:43.5]} 8. Be3 {[%clk 0:02:53.9]}
8... b6 {[%clk 0:02:42.4]} 9. Qd2 {[%clk 0:02:53.9]} 9... Qc7 {[%clk 0:02:36.4]}
10. O-O {[%clk 0:02:51.5]} 10... Rd8 {[%clk 0:02:29.5]} 11. Bh6 {[%clk
0:02:50.2]} 11... c4 {[%clk 0:02:27.7]} 12. Bxg7 {[%clk 0:02:50]} 12... Kxg7
{[%clk 0:02:28.6]} 13. d4 {[%clk 0:02:50.4]} 13... b5 {[%clk 0:02:25.1]} 14. e5
{[%clk 0:02:45.2]} 14... Nd5 {[%clk 0:02:23.5]} 15. Ne4 {[%clk 0:02:45.6]} 15...
Bf5 {[%clk 0:02:18.4]} 16. Ng3 {[%clk 0:02:45.5]} 16... Be6 {[%clk 0:02:15.2]}
17. Ne4 {[%clk 0:02:14.2]} 17... Bf5 {[%clk 0:02:11.1]} 18. Nc5 {[%clk 0:02:14]}
18... a5 {[%clk 0:02:08.5]} 19. Rfe1 {[%clk 0:02:13.5]} 19... Qc8 {[%clk
0:01:53.9]} 20. Kh2 {[%clk 0:02:06.4]} 20... b4 {[%clk 0:01:49]} 21. Qe2 {[%clk
0:02:05.7]} 21... c3 {[%clk 0:01:39.6]} 22. b3 {[%clk 0:02:05.6]} 22... Nc7
{[%clk 0:01:31.9]} 23. g4 {[%clk 0:02:00.4]} 23... Be6 {[%clk 0:01:29.2]} 24.
Rad1 {[%clk 0:01:42.2]} 24... Bd5 {[%clk 0:01:28.2]} 25. Ng5 {[%clk 0:01:22.2]}
25... h6 {[%clk 0:01:15.6]} 26. Nge4 {[%clk 0:01:22.3]} 26... Ne6 {[%clk
0:01:14]} 27. Nxe6+ {[%clk 0:01:22.5]} 27... Qxe6 {[%clk 0:01:05.6]} 28. Nc5
{[%clk 0:01:22.5]} 28... Qc8 {[%clk 0:01:03.5]} 29. f4 {[%clk 0:01:22.7]} 29...
Ra7 {[%clk 0:00:51.2]} 30. Rd3 {[%clk 0:01:22.4]} 30... f6 {[%clk 0:00:41]} 31.
Rf1 {[%clk 0:01:11.8]} 31... Rf8 {[%clk 0:00:37.3]} 32. f5 {[%clk 0:00:59]}
32... g5 {[%clk 0:00:35.5]} 33. Re1 {[%clk 0:00:56.4]} 33... Rd8 {[%clk
0:00:30.5]} 34. Re3 {[%clk 0:00:54.5]} 34... Qb8 {[%clk 0:00:29.1]} 35. Kg1
{[%clk 0:00:50.8]} 35... Rf8 {[%clk 0:00:27.1]} 36. Qh2 {[%clk 0:00:48.2]} 36...
Qd8 {[%clk 0:00:24.7]} 37. Qg3 {[%clk 0:00:45.4]} 37... Qc8 {[%clk 0:00:24.2]}
38. exf6+ {[%clk 0:00:42.7]} 38... exf6 {[%clk 0:00:24.1]} 39. Re7+ {[%clk
0:00:43.3]} 39... Rxe7 {[%clk 0:00:23.7]} 40. Rxe7+ {[%clk 0:00:43.5]} 40... Rf7
{[%clk 0:00:24.6]} 41. Qd6 {[%clk 0:00:43.4]} 41... Qf8 {[%clk 0:00:18.2]} 42.
Rxf7+ {[%clk 0:00:41.2]} 42... Kxf7 {[%clk 0:00:17.5]} 43. Qxf8+ {[%clk
0:00:14.1]} 43... Kxf8 {[%clk 0:00:17.3]} 44. Nb7 {[%clk 0:00:14.1]} 44... Ke7
{[%clk 0:00:18.2]} 45. Nxa5 {[%clk 0:00:13.7]} 45... Kd6 {[%clk 0:00:18.7]} 46.
Nb7+ {[%clk 0:00:13.8]} 46... Kc7 {[%clk 0:00:17.8]} 47. Nc5 {[%clk 0:00:14.7]}
47... Kd6 {[%clk 0:00:18.7]} 48. Kf2 {[%clk 0:00:14.9]} 48... Kc7 {[%clk
0:00:18.8]} 49. Nd3 {[%clk 0:00:12.1]} 49... Be4 {[%clk 0:00:12.2]} 50. Nxb4
{[%clk 0:00:12.4]} 50... Kd6 {[%clk 0:00:11.9]} 51. a4 {[%clk 0:00:12.2]} 51...
c5 {[%clk 0:00:07.3]} 52. dxc5+ {[%clk 0:00:12.6]} 52... Kxc5 {[%clk 0:00:08.2]}
53. Na6+ {[%clk 0:00:11.5]} 53... Kb6 {[%clk 0:00:06.1]} 54. Nb4 {[%clk
0:00:11.2]} 54... Kc5 {[%clk 0:00:04.8]} 55. Na2 {[%clk 0:00:11.2]} 1-0

[Event "*** Titled Tuesday Blitz"]
[Site "Chess.com"]
[Date "2021.04.06"]
[Round "1"]
[White "kirillshevchenko"]
[Black "woodhy"]
[Result "1-0"]
[WhiteElo "2823"]
[BlackElo "2432"]
[TimeControl "180+1"]
[EndTime "10:08:26 PDT"]
[Termination "kirillshevchenko won by checkmate"]

1. e4 {[%clk 0:02:50.7]} 1... e6 {[%clk 0:02:57.2]} 2. d3 {[%clk 0:02:47.8]}
2... d5 {[%clk 0:02:58.1]} 3. Nd2 {[%clk 0:02:48.1]} 3... Nf6 {[%clk 0:02:58]}
4. Ngf3 {[%clk 0:02:46.8]} 4... c5 {[%clk 0:02:58.4]} 5. g3 {[%clk 0:02:47.2]}
5... Nc6 {[%clk 0:02:58.3]} 6. Bg2 {[%clk 0:02:47.8]} 6... b6 {[%clk 0:02:58.6]}
7. O-O {[%clk 0:02:47.8]} 7... Bb7 {[%clk 0:02:59.1]} 8. Re1 {[%clk 0:02:42.1]}
8... Be7 {[%clk 0:02:59.5]} 9. e5 {[%clk 0:02:39.1]} 9... Nd7 {[%clk 0:02:59.2]}
10. Nf1 {[%clk 0:02:39.7]} 10... Qc7 {[%clk 0:02:59.4]} 11. Qe2 {[%clk
0:02:35.4]} 11... h6 {[%clk 0:02:58.8]} 12. h4 {[%clk 0:02:17.5]} 12... O-O-O
{[%clk 0:02:51.9]} 13. N1h2 {[%clk 0:02:12.5]} 13... Rdg8 {[%clk 0:02:42.5]} 14.
c3 {[%clk 0:02:09.2]} 14... Kb8 {[%clk 0:02:00.2]} 15. d4 {[%clk 0:01:50.7]}
15... cxd4 {[%clk 0:01:30.4]} 16. cxd4 {[%clk 0:01:51.6]} 16... Nb4 {[%clk
0:01:30.3]} 17. Be3 {[%clk 0:01:32.3]} 17... Ba6 {[%clk 0:01:24.5]} 18. Qd2
{[%clk 0:01:26.6]} 18... Qc2 {[%clk 0:01:06.8]} 19. Red1 {[%clk 0:01:07.3]}
19... Rc8 {[%clk 0:01:00.9]} 20. Bf1 {[%clk 0:00:58.6]} 20... Bxf1 {[%clk
0:00:58.2]} 21. Kxf1 {[%clk 0:00:58.6]} 21... Kb7 {[%clk 0:00:55.1]} 22. a3
{[%clk 0:00:52.2]} 22... Qxd2 {[%clk 0:00:53.1]} 23. Rxd2 {[%clk 0:00:52.8]}
23... Nc6 {[%clk 0:00:47.6]} 24. g4 {[%clk 0:00:43.7]} 24... Na5 {[%clk
0:00:46.1]} 25. Rad1 {[%clk 0:00:43.6]} 25... Nc4 {[%clk 0:00:44.6]} 26. Re2
{[%clk 0:00:44]} 26... a5 {[%clk 0:00:42.5]} 27. a4 {[%clk 0:00:40.2]} 27... b5
{[%clk 0:00:38.4]} 28. axb5 {[%clk 0:00:40.3]} 28... a4 {[%clk 0:00:36.5]} 29.
Kg2 {[%clk 0:00:34.9]} 29... Ra8 {[%clk 0:00:33.4]} 30. g5 {[%clk 0:00:35]}
30... hxg5 {[%clk 0:00:31.5]} 31. hxg5 {[%clk 0:00:31.2]} 31... Ra5 {[%clk
0:00:30.6]} 32. Ra1 {[%clk 0:00:29.7]} 32... Rha8 {[%clk 0:00:27]} 33. Ng4
{[%clk 0:00:22.5]} 33... Rxb5 {[%clk 0:00:26.9]} 34. Bc1 {[%clk 0:00:22.5]}
34... a3 {[%clk 0:00:25.2]} 35. bxa3 {[%clk 0:00:22.2]} 35... Ra4 {[%clk
0:00:23]} 36. Kg3 {[%clk 0:00:20.1]} 36... Rb3 {[%clk 0:00:22.6]} 37. Be3 {[%clk
0:00:17.5]} 37... Raxa3 {[%clk 0:00:21.5]} 38. Rxa3 {[%clk 0:00:17.5]} 38...
Bxa3 {[%clk 0:00:22.4]} 39. g6 {[%clk 0:00:17]} 39... fxg6 {[%clk 0:00:21.7]}
40. Ng5 {[%clk 0:00:17.4]} 40... Nf8 {[%clk 0:00:21.1]} 41. Kg2 {[%clk
0:00:16.2]} 41... Be7 {[%clk 0:00:20.8]} 42. Nf7 {[%clk 0:00:15]} 42... Nb2
{[%clk 0:00:19.3]} 43. Re1 {[%clk 0:00:13.4]} 43... Nc4 {[%clk 0:00:18.6]} 44.
Rh1 {[%clk 0:00:13.5]} 44... Nxe3+ {[%clk 0:00:17.5]} 45. fxe3 {[%clk
0:00:13.6]} 45... Rb2+ {[%clk 0:00:17.4]} 46. Kf3 {[%clk 0:00:13.8]} 46... Nd7
{[%clk 0:00:15.6]} 47. Rh7 {[%clk 0:00:13.5]} 47... Bf8 {[%clk 0:00:15.4]} 48.
Nd8+ {[%clk 0:00:12.3]} 48... Kc8 {[%clk 0:00:13.7]} 49. Nxe6 {[%clk 0:00:13.2]}
49... Bb4 {[%clk 0:00:13.5]} 50. Rxg7 {[%clk 0:00:11.8]} 50... Be1 {[%clk
0:00:13.1]} 51. Rxg6 {[%clk 0:00:10.7]} 51... Nb6 {[%clk 0:00:13.1]} 52. Rg8+
{[%clk 0:00:09.7]} 52... Kd7 {[%clk 0:00:12.7]} 53. Nc5+ {[%clk 0:00:10.6]}
53... Kc6 {[%clk 0:00:12.9]} 54. Rg6+ {[%clk 0:00:10.5]} 54... Kb5 {[%clk
0:00:12.3]} 55. Rxb6+ {[%clk 0:00:10.7]} 55... Ka5 {[%clk 0:00:12.5]} 56. Rxb2
{[%clk 0:00:10.4]} 56... Bc3 {[%clk 0:00:11.6]} 57. Ra2+ {[%clk 0:00:10.8]}
57... Kb4 {[%clk 0:00:11.3]} 58. e6 {[%clk 0:00:11]} 58... Bxd4 {[%clk
0:00:12.2]} 59. exd4 {[%clk 0:00:10.6]} 59... Kc4 {[%clk 0:00:12.5]} 60. e7
{[%clk 0:00:11]} 60... Kxd4 {[%clk 0:00:13.4]} 61. e8=Q {[%clk 0:00:11.4]} 61...
Kc4 {[%clk 0:00:14.3]} 62. Qa4+ {[%clk 0:00:11.6]} 62... Kxc5 {[%clk 0:00:12.4]}
63. Rc2+ {[%clk 0:00:11.4]} 63... Kd6 {[%clk 0:00:13.3]} 64. Qc6+ {[%clk
0:00:11.6]} 64... Ke7 {[%clk 0:00:12.9]} 65. Re2+ {[%clk 0:00:12.5]} 65... Kf7
{[%clk 0:00:13.1]} 66. Qd7+ {[%clk 0:00:12.9]} 66... Kg6 {[%clk 0:00:13]} 67.
Re6+ {[%clk 0:00:13.5]} 67... Kg5 {[%clk 0:00:13.9]} 68. Qg7+ {[%clk 0:00:13.8]}
68... Kf5 {[%clk 0:00:13.7]} 69. Re5# {[%clk 0:00:13.7]} 1-0

[Event "*** Titled Tuesday Blitz"]
[Site "Chess.com"]
[Date "2021.04.06"]
[Round "1"]
[White "stanyga"]
[Black "Xeniya2005"]
[Result "1-0"]
[WhiteElo "2621"]
[BlackElo "2326"]
[TimeControl "180+1"]
[EndTime "10:08:26 PDT"]
[Termination "stanyga won on time"]

1. d4 {[%clk 0:03:00.3]} 1... Nf6 {[%clk 0:02:59.4]} 2. c4 {[%clk 0:02:59.6]}
2... e6 {[%clk 0:02:58.2]} 3. Nc3 {[%clk 0:02:59.1]} 3... Bb4 {[%clk 0:02:57.1]}
4. f3 {[%clk 0:02:58.4]} 4... d5 {[%clk 0:02:53.8]} 5. a3 {[%clk 0:02:54.3]}
5... Bxc3+ {[%clk 0:02:47.3]} 6. bxc3 {[%clk 0:02:53.9]} 6... c5 {[%clk
0:02:38]} 7. e3 {[%clk 0:02:51.2]} 7... Qc7 {[%clk 0:02:27.6]} 8. cxd5 {[%clk
0:02:42.3]} 8... exd5 {[%clk 0:02:18]} 9. Kf2 {[%clk 0:02:36]} 9... O-O {[%clk
0:02:10.8]} 10. Bd3 {[%clk 0:02:33.9]} 10... Nc6 {[%clk 0:01:59.7]} 11. Ne2
{[%clk 0:02:30.9]} 11... Bd7 {[%clk 0:01:42.5]} 12. Nf4 {[%clk 0:02:24.2]} 12...
Rae8 {[%clk 0:01:35.7]} 13. h4 {[%clk 0:02:14.9]} 13... h5 {[%clk 0:01:27.9]}
14. Rb1 {[%clk 0:01:48.5]} 14... b6 {[%clk 0:01:21.1]} 15. Qg1 {[%clk
0:01:13.2]} 15... Ne7 {[%clk 0:01:06.7]} 16. Qh2 {[%clk 0:00:54.2]} 16... Qc8
{[%clk 0:00:41.9]} 17. Rb2 {[%clk 0:00:41]} 17... Bf5 {[%clk 0:00:38.6]} 18. Be2
{[%clk 0:00:40.1]} 18... cxd4 {[%clk 0:00:19.9]} 19. cxd4 {[%clk 0:00:39.4]}
19... Qc3 {[%clk 0:00:19.6]} 20. Qg3 {[%clk 0:00:25.8]} 20... Ng6 {[%clk
0:00:16.7]} 21. Nxg6 {[%clk 0:00:21.4]} 21... Bxg6 {[%clk 0:00:16.6]} 22. Qd6
{[%clk 0:00:19.1]} 22... Re6 {[%clk 0:00:16.1]} 23. Qb4 {[%clk 0:00:18.6]} 23...
Qc7 {[%clk 0:00:15.3]} 24. Bd2 {[%clk 0:00:18]} 24... Rfe8 {[%clk 0:00:14.2]}
25. Rb3 {[%clk 0:00:13.6]} 25... Nd7 {[%clk 0:00:13.9]} 26. Rc3 {[%clk
0:00:13.2]} 26... Qb8 {[%clk 0:00:13.6]} 27. g3 {[%clk 0:00:13]} 27... Rf6
{[%clk 0:00:13]} 28. Rhc1 {[%clk 0:00:12.4]} 28... Rfe6 {[%clk 0:00:11.6]} 29.
Rc7 {[%clk 0:00:11]} 29... Nf6 {[%clk 0:00:10.5]} 30. Qa4 {[%clk 0:00:10.5]}
30... a5 {[%clk 0:00:09.8]} 31. Qb5 {[%clk 0:00:10.5]} 31... Bf5 {[%clk
0:00:06.3]} 32. Kg2 {[%clk 0:00:08.4]} 32... Qd8 {[%clk 0:00:05.6]} 33. Rc8
{[%clk 0:00:07.4]} 33... Qxc8 {[%clk 0:00:05.2]} 34. Rxc8 {[%clk 0:00:07.2]}
34... Rxc8 {[%clk 0:00:06.1]} 35. Bd1 {[%clk 0:00:07.5]} 35... Rcc6 {[%clk
0:00:05]} 36. Kf2 {[%clk 0:00:07.4]} 36... Rc7 {[%clk 0:00:05]} 37. Qa6 {[%clk
0:00:07.4]} 37... Rec6 {[%clk 0:00:05]} 38. Qa8+ {[%clk 0:00:07.2]} 38... Kh7
{[%clk 0:00:04.8]} 39. Qd8 {[%clk 0:00:06.8]} 39... Rc8 {[%clk 0:00:04.5]} 40.
Qe7 {[%clk 0:00:07]} 40... R8c7 {[%clk 0:00:04.7]} 41. Qe5 {[%clk 0:00:07.2]}
41... Bc2 {[%clk 0:00:04.3]} 42. Be2 {[%clk 0:00:07.1]} 42... Bb3 {[%clk
0:00:03.9]} 43. g4 {[%clk 0:00:06.7]} 43... hxg4 {[%clk 0:00:03.4]} 44. Qf5+
{[%clk 0:00:06.6]} 44... g6 {[%clk 0:00:03.1]} 45. Qf4 {[%clk 0:00:06.6]} 45...
gxf3 {[%clk 0:00:02.9]} 46. Bxf3 {[%clk 0:00:06.5]} 46... Bc2 {[%clk 0:00:03]}
47. Kg3 {[%clk 0:00:06]} 47... Be4 {[%clk 0:00:02.9]} 48. Bd1 {[%clk 0:00:06.2]}
48... Rc4 {[%clk 0:00:02.1]} 49. Qxf6 {[%clk 0:00:04.5]} 49... R4c6 {[%clk
0:00:02]} 50. Qf4 {[%clk 0:00:04.3]} 50... Re7 {[%clk 0:00:02.3]} 51. h5 {[%clk
0:00:04.6]} 51... Rce6 {[%clk 0:00:01.2]} 52. hxg6+ {[%clk 0:00:04.4]} 52...
Rxg6+ {[%clk 0:00:01.1]} 53. Kf2 {[%clk 0:00:04.6]} 1-0

[Event "*** Titled Tuesday Blitz"]
[Site "Chess.com"]
[Date "2021.04.06"]
[Round "1"]
[White "WPWPWP-2015"]
[Black "kuli4ik"]
[Result "0-1"]
[WhiteElo "2446"]
[BlackElo "2866"]
[TimeControl "180+1"]
[EndTime "10:08:27 PDT"]
[Termination "kuli4ik won on time"]

1. e4 {[%clk 0:02:49.1]} 1... Nf6 {[%clk 0:02:57.3]} 2. Nc3 {[%clk 0:02:47.3]}
2... d5 {[%clk 0:02:56.7]} 3. e5 {[%clk 0:02:47.1]} 3... Nfd7 {[%clk 0:02:56]}
4. f4 {[%clk 0:02:45.6]} 4... Nb6 {[%clk 0:02:50.4]} 5. d4 {[%clk 0:02:44.1]}
5... Bf5 {[%clk 0:02:45.7]} 6. g4 {[%clk 0:02:39.1]} 6... Be4 {[%clk 0:02:45.7]}
7. Nxe4 {[%clk 0:02:37.1]} 7... dxe4 {[%clk 0:02:46.6]} 8. c4 {[%clk 0:02:32]}
8... e6 {[%clk 0:02:45.2]} 9. Ne2 {[%clk 0:01:54.5]} 9... c5 {[%clk 0:02:41.6]}
10. dxc5 {[%clk 0:01:48.6]} 10... Qh4+ {[%clk 0:02:39]} 11. Ng3 {[%clk
0:01:47.3]} 11... Bxc5 {[%clk 0:02:39.3]} 12. Qe2 {[%clk 0:01:35.1]} 12... Nc6
{[%clk 0:02:35.5]} 13. Qxe4 {[%clk 0:01:32.8]} 13... O-O-O {[%clk 0:02:15.1]}
14. Be2 {[%clk 0:01:17.3]} 14... Rd7 {[%clk 0:01:28.3]} 15. Be3 {[%clk
0:01:11.4]} 15... Bxe3 {[%clk 0:01:15.8]} 16. Qxe3 {[%clk 0:01:10.8]} 16... Qh3
{[%clk 0:01:08.9]} 17. Rd1 {[%clk 0:01:01]} 17... Rxd1+ {[%clk 0:01:07.6]} 18.
Kxd1 {[%clk 0:01:00.9]} 18... Qg2 {[%clk 0:01:02.6]} 19. Qf3 {[%clk 0:00:39.4]}
19... Rd8+ {[%clk 0:00:58.4]} 20. Kc1 {[%clk 0:00:37]} 20... Qxf3 {[%clk
0:00:57]} 21. Bxf3 {[%clk 0:00:36.5]} 21... Nd4 {[%clk 0:00:56.1]} 22. Be4
{[%clk 0:00:26.1]} 22... Nxc4 {[%clk 0:00:56]} 23. Re1 {[%clk 0:00:22.1]} 23...
g6 {[%clk 0:00:52.4]} 24. Ne2 {[%clk 0:00:20.6]} 24... Kc7 {[%clk 0:00:44.4]}
25. b3 {[%clk 0:00:18.4]} 25... Nb6 {[%clk 0:00:37.2]} 26. Nc3 {[%clk
0:00:17.9]} 26... a6 {[%clk 0:00:35.8]} 27. Rd1 {[%clk 0:00:17.5]} 27... h6
{[%clk 0:00:29.7]} 28. Kb2 {[%clk 0:00:17.2]} 28... Rd7 {[%clk 0:00:25.8]} 29.
h4 {[%clk 0:00:16.5]} 29... Rd8 {[%clk 0:00:18.8]} 30. h5 {[%clk 0:00:14.2]}
30... gxh5 {[%clk 0:00:18.5]} 31. gxh5 {[%clk 0:00:15.1]} 31... Nc6 {[%clk
0:00:17.8]} 32. Rg1 {[%clk 0:00:14.8]} 32... Rh8 {[%clk 0:00:15.5]} 33. Rg7
{[%clk 0:00:13.6]} 33... Nd8 {[%clk 0:00:15.8]} 34. f5 {[%clk 0:00:13.4]} 34...
exf5 {[%clk 0:00:15.5]} 35. Bxf5 {[%clk 0:00:13.7]} 35... Kb8 {[%clk 0:00:16]}
36. Ne4 {[%clk 0:00:13.1]} 36... Nd5 {[%clk 0:00:15.8]} 37. Nd6 {[%clk
0:00:12.2]} 37... Rf8 {[%clk 0:00:14.2]} 38. Be4 {[%clk 0:00:11.3]} 38... Nf4
{[%clk 0:00:13.5]} 39. Bf3 {[%clk 0:00:11.4]} 39... Nd3+ {[%clk 0:00:12.9]} 40.
Kc3 {[%clk 0:00:11.7]} 40... Nxe5 {[%clk 0:00:13.8]} 41. Be4 {[%clk 0:00:11.8]}
41... Kc7 {[%clk 0:00:13.7]} 42. Nf5 {[%clk 0:00:11.2]} 42... Rh8 {[%clk
0:00:13.6]} 43. Kd4 {[%clk 0:00:10.4]} 43... Nd7 {[%clk 0:00:12.8]} 44. Bd3
{[%clk 0:00:09.4]} 44... Ne6+ {[%clk 0:00:13.1]} 45. Ke3 {[%clk 0:00:08.9]}
45... Nxg7 {[%clk 0:00:14]} 46. Nxg7 {[%clk 0:00:08.5]} 46... Ne5 {[%clk
0:00:14.5]} 47. Be4 {[%clk 0:00:08]} 47... b6 {[%clk 0:00:14.5]} 48. Nf5 {[%clk
0:00:07.7]} 48... Nd7 {[%clk 0:00:14.6]} 49. Kf4 {[%clk 0:00:07.4]} 49... Nf6
{[%clk 0:00:14.9]} 50. Bf3 {[%clk 0:00:07.7]} 50... a5 {[%clk 0:00:14.9]} 51.
Ne3 {[%clk 0:00:07.7]} 51... Kd6 {[%clk 0:00:14.5]} 52. Nc4+ {[%clk 0:00:07.8]}
52... Kc5 {[%clk 0:00:14.8]} 53. Ne5 {[%clk 0:00:07.9]} 53... Nd7 {[%clk
0:00:13.4]} 54. Ng4 {[%clk 0:00:06.5]} 54... b5 {[%clk 0:00:11.8]} 55. Ne3
{[%clk 0:00:06.1]} 55... b4 {[%clk 0:00:11.8]} 56. Nf5 {[%clk 0:00:06.1]} 56...
Nf6 {[%clk 0:00:10.9]} 57. Be2 {[%clk 0:00:06.2]} 57... Nd5+ {[%clk 0:00:10.3]}
58. Kf3 {[%clk 0:00:05.8]} 58... Nc3 {[%clk 0:00:11.2]} 59. Bc4 {[%clk
0:00:05.3]} 59... Nxa2 {[%clk 0:00:11.6]} 60. Bxf7 {[%clk 0:00:05]} 60... Nc1
{[%clk 0:00:11.7]} 61. Ke4 {[%clk 0:00:04.5]} 61... a4 {[%clk 0:00:11.8]} 62.
bxa4 {[%clk 0:00:04.2]} 62... b3 {[%clk 0:00:12.4]} 63. Nd4 {[%clk 0:00:03.8]}
63... b2 {[%clk 0:00:12.8]} 0-1

[Event "*** Titled Tuesday Blitz"]
[Site "Chess.com"]
[Date "2021.04.06"]
[Round "1"]
[White "Chessbard1972"]
[Black "CheckThis4"]
[Result "1/2-1/2"]
[WhiteElo "2338"]
[BlackElo "2617"]
[TimeControl "180+1"]
[EndTime "10:08:27 PDT"]
[Termination "Game drawn by stalemate"]

1. e4 {[%clk 0:03:00.6]} 1... e6 {[%clk 0:02:58.9]} 2. d4 {[%clk 0:02:59.5]}
2... d5 {[%clk 0:02:59]} 3. e5 {[%clk 0:02:59.8]} 3... c5 {[%clk 0:02:58.9]} 4.
dxc5 {[%clk 0:03:00.3]} 4... Nc6 {[%clk 0:02:57.7]} 5. Nf3 {[%clk 0:02:59.3]}
5... Bxc5 {[%clk 0:02:56.5]} 6. Bd3 {[%clk 0:02:58.2]} 6... f6 {[%clk
0:02:53.9]} 7. Qe2 {[%clk 0:02:52.9]} 7... Qc7 {[%clk 0:02:49]} 8. exf6 {[%clk
0:02:43.7]} 8... Nxf6 {[%clk 0:02:48]} 9. O-O {[%clk 0:02:39]} 9... Bd7 {[%clk
0:02:37.3]} 10. Bg5 {[%clk 0:02:26.3]} 10... O-O-O {[%clk 0:02:33.6]} 11. c4
{[%clk 0:02:15.9]} 11... Nd4 {[%clk 0:02:13.5]} 12. Nxd4 {[%clk 0:02:14.4]}
12... Bxd4 {[%clk 0:02:14.4]} 13. Nc3 {[%clk 0:02:07.6]} 13... dxc4 {[%clk
0:02:08.4]} 14. Bxc4 {[%clk 0:02:05.9]} 14... Bxc3 {[%clk 0:02:07]} 15. bxc3
{[%clk 0:02:05.3]} 15... Rhe8 {[%clk 0:01:56.5]} 16. Rfd1 {[%clk 0:01:59]} 16...
Kb8 {[%clk 0:01:50.3]} 17. Bh4 {[%clk 0:01:52.4]} 17... e5 {[%clk 0:01:43.4]}
18. Rab1 {[%clk 0:01:47.7]} 18... Bc6 {[%clk 0:01:42.6]} 19. Bb5 {[%clk
0:01:42]} 19... Rxd1+ {[%clk 0:01:35.2]} 20. Rxd1 {[%clk 0:01:40.1]} 20... Ne4
{[%clk 0:01:32.6]} 21. Bxc6 {[%clk 0:01:36]} 21... Qxc6 {[%clk 0:01:23.2]} 22.
Qh5 {[%clk 0:01:23.7]} 22... Nxc3 {[%clk 0:01:07.8]} 23. Re1 {[%clk 0:01:23.3]}
23... g6 {[%clk 0:01:00.8]} 24. Qxh7 {[%clk 0:01:20.9]} 24... Qc4 {[%clk
0:00:49.8]} 25. Bg3 {[%clk 0:01:15]} 25... Ne2+ {[%clk 0:00:49.1]} 26. Kh1
{[%clk 0:01:12.9]} 26... Qc3 {[%clk 0:00:42.9]} 27. Rf1 {[%clk 0:01:07.7]} 27...
Nxg3+ {[%clk 0:00:35.9]} 28. fxg3 {[%clk 0:01:06.4]} 28... e4 {[%clk 0:00:33.8]}
29. Rb1 {[%clk 0:01:04.1]} 29... Qc6 {[%clk 0:00:32.5]} 30. Qf7 {[%clk
0:00:56.1]} 30... e3 {[%clk 0:00:32.4]} 31. h3 {[%clk 0:00:51.7]} 31... e2
{[%clk 0:00:30.4]} 32. Rxb7+ {[%clk 0:00:49.3]} 32... Kc8 {[%clk 0:00:29]} 33.
Rc7+ {[%clk 0:00:43.3]} 33... Kb8 {[%clk 0:00:24.2]} 34. Rxc6 {[%clk 0:00:41.7]}
34... e1=Q+ {[%clk 0:00:24.5]} 35. Kh2 {[%clk 0:00:42.1]} 35... Qe4 {[%clk
0:00:20.8]} 36. Qc7+ {[%clk 0:00:33.6]} 36... Ka8 {[%clk 0:00:20.5]} 37. Ra6
{[%clk 0:00:28.1]} 37... Qb7 {[%clk 0:00:17.9]} 38. Qxb7+ {[%clk 0:00:26.1]}
38... Kxb7 {[%clk 0:00:18.8]} 39. Rxg6 {[%clk 0:00:26.2]} 39... Re2 {[%clk
0:00:19.1]} 40. a4 {[%clk 0:00:24.7]} 40... Re4 {[%clk 0:00:19.1]} 41. Rg4
{[%clk 0:00:23.3]} 41... Re8 {[%clk 0:00:18.3]} 42. h4 {[%clk 0:00:22.7]} 42...
Kb6 {[%clk 0:00:19.2]} 43. Kh3 {[%clk 0:00:21.8]} 43... a5 {[%clk 0:00:20.1]}
44. h5 {[%clk 0:00:21.8]} 44... Kc5 {[%clk 0:00:21]} 45. Kh4 {[%clk 0:00:21.5]}
45... Rb8 {[%clk 0:00:19.3]} 46. h6 {[%clk 0:00:20.3]} 46... Kd5 {[%clk
0:00:19.2]} 47. Kh5 {[%clk 0:00:19.3]} 47... Ke6 {[%clk 0:00:18.8]} 48. h7
{[%clk 0:00:18.6]} 48... Kf7 {[%clk 0:00:18.5]} 49. Rg8 {[%clk 0:00:14.7]} 49...
Rb1 {[%clk 0:00:14.3]} 50. h8=Q {[%clk 0:00:11.9]} 50... Rh1+ {[%clk 0:00:13.8]}
51. Kg4 {[%clk 0:00:12.3]} 51... Re1 {[%clk 0:00:14.7]} 52. Qg7+ {[%clk
0:00:11.7]} 52... Ke6 {[%clk 0:00:15.3]} 53. Qg6+ {[%clk 0:00:11.8]} 53... Kd5
{[%clk 0:00:16.2]} 54. Rd8+ {[%clk 0:00:11.7]} 54... Kc4 {[%clk 0:00:16.7]} 55.
Rc8+ {[%clk 0:00:11.6]} 55... Kb3 {[%clk 0:00:17.6]} 56. Qb6+ {[%clk 0:00:11.4]}
56... Ka3 {[%clk 0:00:17.4]} 57. Rc3+ {[%clk 0:00:11.7]} 57... Ka2 {[%clk
0:00:16.8]} 58. Qb3+ {[%clk 0:00:11.9]} 58... Ka1 {[%clk 0:00:17.7]} 59. Qa3+
{[%clk 0:00:11.9]} 59... Kb1 {[%clk 0:00:17.5]} 60. Qb3+ {[%clk 0:00:11.6]}
60... Ka1 {[%clk 0:00:17.8]} 61. Rc2 {[%clk 0:00:12]} 61... Re4+ {[%clk
0:00:17.3]} 62. Kf5 {[%clk 0:00:10.3]} 62... Re5+ {[%clk 0:00:16.5]} 63. Kf4
{[%clk 0:00:09.8]} 63... Re4+ {[%clk 0:00:16.9]} 64. Kf3 {[%clk 0:00:09.6]}
64... Rf4+ {[%clk 0:00:16.9]} 65. Ke2 {[%clk 0:00:09.1]} 65... Rf2+ {[%clk
0:00:16.9]} 66. Ke1 {[%clk 0:00:07.6]} 66... Rf1+ {[%clk 0:00:17]} 67. Kd2
{[%clk 0:00:06.9]} 67... Rf2+ {[%clk 0:00:16.4]} 68. Kc3 {[%clk 0:00:06.7]}
68... Rxc2+ {[%clk 0:00:15.6]} 69. Qxc2 {[%clk 0:00:04.6]} 1/2-1/2